fUSD/lending_fUSD_20240506
["ID","MTS","AMOUNT","RATE_DAILY","PERIOD"]
[326515462,1715034671211,-515.10765503,0.00025205,4]
[326515463,1715034671221,-500.0,0.00025205,4]
[326515464,1715034671230,-1457.95,0.00025205,4]
[326515465,1715034671239,-500.0,0.00025205,4]
[326515466,1715034671249,-781.62,0.00025205,4]
[326515467,1715034671259,-760.68,0.00025205,4]
[326515468,1715034671272,-500.0,0.00025205,4]
[326515469,1715034671281,-1238.82,0.00025205,4]
[326515470,1715034671291,-500.0,0.00025205,4]
[326515471,1715034671301,-730.63,0.00025205,4]
[326515472,1715034671310,-1107.51,0.00025205,4]
[326515473,1715034671320,-500.0,0.00025205,4]
[326515474,1715034671331,-500.0,0.00025205,4]
[326515475,1715034671340,-871.47,0.00025205,4]
[326515476,1715034671350,-500.0,0.00025205,4]
[326515477,1715034671360,-1003.5,0.00025205,4]
[326515478,1715034671370,-833.18,0.00025205,4]
[326515479,1715034671380,-1286.23,0.00025205,4]
[326515480,1715034671390,-500.0,0.00025205,4]
[326515481,1715034671400,-572.54,0.00025205,4]
[326515482,1715034671410,-500.0,0.00025205,4]
[326515483,1715034671419,-500.0,0.00025205,4]
[326515484,1715034671429,-500.0,0.00025205,4]
[326515485,1715034671438,-679.88,0.00025205,4]
[326515486,1715034671448,-534.71,0.00025205,4]
[326515487,1715034671458,-852.99,0.00025205,4]
[326515488,1715034671468,-500.0,0.00025205,4]
[326515489,1715034671478,-507.41,0.00025205,4]
[326515490,1715034671488,-500.0,0.00025205,4]
[326515491,1715034671499,-153.84,0.00025205,4]
[326515492,1715034671508,-1759.77,0.00025205,4]
[326515493,1715034671518,-500.0,0.00025205,4]
[326515494,1715034671527,-500.0,0.00025205,4]
[326515495,1715034671536,-851.94,0.00025205,4]
[326515496,1715034671546,-3000.0,0.00025205,3]
[326515497,1715034671556,-500.0,0.00025205,4]
[326515498,1715034671565,-554.25,0.00025205,4]
[326515499,1715034671575,-2624.51,0.00025205,4]
[326515500,1715034671585,-2221.85,0.00025205,4]
[326515501,1715034671595,-1146.85,0.00025205,4]
[326515502,1715034671604,-1973.09,0.00025205,4]
[326515503,1715034671614,-1305.92,0.00025205,4]
[326515504,1715034671625,-500.0,0.00025205,4]
[326515505,1715034671635,-500.0,0.00025205,4]
[326515506,1715034671645,-1356.01,0.00025205,4]
[326515507,1715034671655,-1122.65,0.00025205,4]
[326515508,1715034671664,-878.48,0.00025205,4]
[326515509,1715034671675,-506.16,0.00025205,4]
[326515510,1715034671685,-500.0,0.00025205,4]
[326515511,1715034671695,-500.0,0.00025205,4]
[326515512,1715034671705,-500.0,0.00025205,4]
[326515513,1715034671714,-517.48,0.00025205,4]
[326515514,1715034671723,-500.0,0.00025205,4]
[326515515,1715034671732,-1462.72,0.00025205,4]
[326515516,1715034671742,-1109.49,0.00025205,4]
[326515517,1715034671752,-500.0,0.00025205,4]
[326515518,1715034671762,-630.22,0.00025205,4]
[326515519,1715034671772,-788.28,0.00025205,4]
[326515520,1715034671782,-1072.42,0.00025205,4]
[326515521,1715034671792,-500.0,0.00025205,4]
[326515522,1715034671802,-500.0,0.00025205,2]
[326515523,1715034671811,-562.62,0.00025205,4]
[326515524,1715034671820,-517.35,0.00025205,4]
[326515525,1715034671830,-610.7,0.00025205,4]
[326515526,1715034671839,-1461.45,0.00025205,4]
[326515527,1715034671848,-500.0,0.00025205,4]
[326515528,1715034671858,-1373.55,0.00025205,4]
[326515529,1715034671867,-500.0,0.00025205,4]
[326515530,1715034671876,-500.0,0.00025205,4]
[326515531,1715034671885,-539.37,0.00025205,4]
[326515532,1715034671895,-1380.9,0.00025205,4]
[326515533,1715034671905,-1493.89,0.00025205,4]
[326515534,1715034671915,-500.0,0.00025205,4]
[326515535,1715034671930,-500.0,0.00025205,4]
[326515536,1715034671940,-500.0,0.00025205,4]
[326515537,1715034671950,-500.0,0.00025205,4]
[326515538,1715034671960,-505.67,0.00025205,4]
[326515539,1715034671971,-697.58,0.00025205,4]
[326515540,1715034671981,-500.0,0.00025205,4]
[326515541,1715034671990,-674.49,0.00025205,4]
[326515542,1715034672001,-834.23,0.00025205,4]
[326515543,1715034672010,-705.56,0.00025205,4]
[326515544,1715034672021,-606.73,0.00025205,4]
[326515545,1715034672032,-500.0,0.00025205,4]
[326515546,1715034672043,-891.37,0.00025205,4]
[326515547,1715034672053,-930.7,0.00025205,4]
[326515548,1715034672063,-734.42,0.00025205,4]
[326515549,1715034672073,-500.0,0.00025205,4]
[326515550,1715034672083,-500.0,0.00025205,4]
[326515551,1715034672092,-1080.15,0.00025205,4]
[326515552,1715034672102,-500.0,0.00025205,4]
[326515553,1715034672111,-500.0,0.00025205,4]
[326515554,1715034672121,-508.76,0.00025205,4]
[326515555,1715034672133,-500.0,0.00025205,4]
[326515556,1715034672143,-1469.82,0.00025205,4]
[326515557,1715034672315,-853.15,0.00025205,4]
[326515558,1715034672337,-529.31,0.00025205,4]
[326515559,1715034672348,-500.0,0.00025205,4]
[326515560,1715034672359,-1178.39,0.00025205,4]
[326515561,1715034672369,-1811.2,0.00025205,4]
[326515562,1715034672380,-993.07,0.00025205,4]
[326515563,1715034672390,-500.0,0.00025205,4]
[326515564,1715034672400,-469.56244502,0.00025205,4]
[326515565,1715034672411,-500.0,0.00025205,4]
[326515566,1715034672420,-500.0,0.00025205,4]
[326515567,1715034672430,-500.0,0.00025205,4]
[326515568,1715034672440,-500.0,0.00025205,4]
[326515569,1715034672450,-1451.77,0.00025205,4]
[326515570,1715034672460,-1302.96,0.00025205,4]
[326515571,1715034672471,-1270.73,0.00025205,4]
[326515572,1715034672481,-1522.99,0.00025205,4]
[326515573,1715034672492,-1252.37,0.00025205,4]
[326515574,1715034672502,-500.0,0.00025205,4]
[326515575,1715034672511,-500.0,0.00025205,4]
[326515576,1715034672521,-500.0,0.00025205,2]
[326515577,1715034672531,-566.4,0.00025205,4]
[326515578,1715034672540,-500.0,0.00025205,4]
[326515579,1715034672553,-1048.4782965,0.00025205,4]
[326515580,1715034673037,-313.1417035,0.00025205,4]
[326515581,1715034673047,-319.21398442,0.00025205,4]
[326515582,1715034673060,-180.78601558,0.00025205,4]
[326515583,1715034673070,-1401.23,0.00025205,4]
[326515584,1715034673080,-500.0,0.00025205,4]
[326515585,1715034673089,-1211.48,0.00025205,4]
[326515586,1715034673099,-500.0,0.00025205,4]
[326515587,1715034673111,-522.28,0.00025205,4]
[326515588,1715034673120,-134.50602219,0.00025205,4]
[326515589,1715034673135,-1175.26064,0.00025205,4]
[326515597,1715035131777,1542.87,0.00023,30]
[326515599,1715035391185,4499.89779722,0.00025008,120]
[326515609,1715035833867,-202.0,0.00010956,2]
[326515611,1715035833878,-1103.90872281,0.00010957,2]
[326515613,1715035833890,-155.87164352,0.00010958,2]
[326515615,1715035833900,-174.84052728,0.00010959,2]
[326515617,1715035833910,-250.0,0.00012411,2]
[326515619,1715035833920,-2161.00741556,0.000125,2]
[326515622,1715035833933,-11941.32622673,0.000125,2]
[326515624,1715035833946,-8696.75509935,0.000125,2]
[326515625,1715035833955,-6888.11,0.00012501,2]
[326515626,1715035833966,-150.0,0.00012598,2]
[326515627,1715035833976,-3519.04960388,0.000126,2]
[326515628,1715035833988,-150.99,0.000126,2]
[326515629,1715035833999,-499.99,0.000126,2]
[326515630,1715035834010,-150.0,0.00012767,2]
[326515631,1715035834020,-151.29251735,0.000128,2]
[326515632,1715035834031,-466.1398,0.000128,2]
[326515633,1715035834041,-151.29251735,0.0001285,2]
[326515634,1715035834051,-150.99,0.0001285,2]
[326515635,1715035834061,-155.78,0.00012899,2]
[326515636,1715035834071,-232.2857,0.00012899,2]
[326515637,1715035834081,-1000.0,0.00012899,2]
[326515638,1715035834092,-1651.8349,0.00012899,2]
[326515639,1715035834102,-192.83799628,0.00012899,2]
[326515640,1715035834112,-310.34277612,0.00012899,2]
[326515641,1715035834122,-192.83799626,0.000129,2]
[326515642,1715035834132,-6369.00295965,0.000129,2]
[326515643,1715035834143,-151.29251735,0.000129,2]
[326515644,1715035834152,-180.7562889,0.000129,2]
[326515645,1715035834163,-192.83799626,0.000129,2]
[326515646,1715035834173,-241.2473165,0.000129,2]
[326515647,1715035834183,-277.91168522,0.000129,2]
[326515648,1715035834192,-1964.84957994,0.000129,2]
[326515649,1715035834203,-315.2042008,0.00012989,2]
[326515650,1715035834213,-3055.51863775,0.00012998,2]
[326515651,1715035834224,-150.99,0.00012998,2]
[326515652,1715035834235,-155.0,0.00012999,2]
[326515653,1715035834246,-5843.04815923,0.00012999,2]
[326515654,1715035834258,-1037.08295783,0.00012999,2]
[326515655,1715035834272,-5737.5,0.00012999,2]
[326515656,1715035834284,-8945.45338396,0.00012999,2]
[326515657,1715035834297,-333.0,0.00012999,2]
[326515658,1715035834312,-826.3254998,0.00012999,2]
[326515659,1715035834325,-4480.79283856,0.00012999,2]
[326515660,1715035834338,-6303.3560839,0.00012999,2]
[326515661,1715035834350,-363.76455997,0.00012999,2]
[326515662,1715035834362,-427.34999358,0.00012999,2]
[326515663,1715035834374,-367.39999985,0.00012999,2]
[326515664,1715035834386,-490.0,0.00012999,2]
[326515665,1715035834401,-423.02988,0.00012999,2]
[326515666,1715035834415,-378.73,0.00012999,2]
[326515667,1715035834426,-1018.51017999,0.00012999,2]
[326515668,1715035834439,-380.54,0.00012999,2]
[326515669,1715035834451,-779.28,0.00012999,2]
[326515670,1715035834463,-2603.71306986,0.00012999,2]
[326515671,1715035834475,-779.78744094,0.00012999,2]
[326515672,1715035834487,-417.27522362,0.00012999,2]
[326515673,1715035834499,-432.13597191,0.00012999,2]
[326515674,1715035834511,-290.0,0.00012999,2]
[326515675,1715035834523,-1962.53935742,0.00012999,2]
[326515676,1715035834539,-5450.93999964,0.00012999,2]
[326515677,1715035834551,-327.23650159,0.00012999,2]
[326515678,1715035834563,-533130.36970038,0.00012999,2]
[326515679,1715035834575,-17982.86467853,0.00012999,2]
[326515680,1715035834585,-357.23,0.00012999,2]
[326515681,1715035834595,-224.99,0.00012999,2]
[326515682,1715035834605,-47296.70914745,0.00013,2]
[326515683,1715035834619,-1451.45000021,0.00013,2]
[326515684,1715035834631,-789.29286824,0.00013,2]
[326515685,1715035834645,-5985.93932274,0.00013,2]
[326515686,1715035834656,-6541.10183312,0.00013,2]
[326515687,1715035834668,-4050.0,0.00013,2]
[326515688,1715035834682,-598.98169019,0.00013,2]
[326515708,1715035845259,-463480.56966229,0.00013,2]
[326515714,1715035846833,-166.43,0.00012989,2]
[326515716,1715035846843,-166.43,0.0001299,2]
[326515718,1715035846852,-284.83448475,0.00013,2]
[326515742,1715035847963,-346.09482282,0.00012411,2]
[326515756,1715035849123,-4608.75303101,0.00012411,2]
[326515758,1715035849134,-1850.25890307,0.00012411,2]
[326515763,1715035849903,-2000.81106848,0.00012411,2]
[326515765,1715035849915,-404.4192757,0.00012411,2]
[326515767,1715035849927,-729.0,0.00012411,2]
[326515780,1715035854421,-3336.98512299,0.00012411,2]
[326515782,1715035854431,-10875.98954795,0.00012869,2]
[326515786,1715035854442,-210.13613387,0.00012989,2]
[326515789,1715035854451,-166.43,0.0001299,2]
[326515792,1715035854461,-166.43,0.0001299,2]
[326515794,1715035854471,-210.13613387,0.0001299,2]
[326515796,1715035854481,-210.13613387,0.0001299,2]
[326515798,1715035854491,-884942.67067444,0.00013,2]
[326515800,1715035854502,-944.24032966,0.00013,2]
[326515805,1715035898732,186.86913383,0.0002,30]
[326515817,1715037032861,-324.32861415,0.00012038,2]
[326515819,1715037032871,-264.38625069,0.00012039,2]
[326515820,1715037032884,-1920.92374931,0.00012039,2]
[326515821,1715037032896,-1259.25,0.00012249,2]
[326515822,1715037032906,-240.16,0.00012251,2]
[326515823,1715037032915,-10000.0,0.00012319,2]
[326515825,1715037032930,-166.14,0.00012322,2]
[326515827,1715037032940,-195.36,0.0001237,2]
[326515828,1715037032949,-1000.0,0.00012416,2]
[326515829,1715037032959,-300.0,0.000125,4]
[326515830,1715037032970,-600.0,0.000126,4]
[326515831,1715037032979,-854.07,0.000126,2]
[326515832,1715037032990,-988.59863267,0.00012699,2]
[326515833,1715037033002,-672.3424,0.00012699,2]
[326515834,1715037033015,-3210.7,0.00012699,2]
[326515835,1715037033027,-11056.11276733,0.00012699,2]
[326515836,1715037033037,-900.0,0.000127,4]
[326515837,1715037033047,-942.60538403,0.00012723,2]
[326515838,1715037033058,-3498.38014246,0.00012763,2]
[326515839,1715037033068,-9495.51199308,0.00012799,2]
[326515840,1715037033081,-6986.10920762,0.00012799,2]
[326515841,1715037033093,-3400.39942654,0.00012799,2]
[326515845,1715037041262,-8661.79817276,0.00012799,2]
[326515846,1715037041273,-1000.0,0.00012799,2]
[326515847,1715037041283,-2073.0786,0.00012799,2]
[326515848,1715037041294,-512.1768,0.00012799,2]
[326515849,1715037041305,-256.483,0.00012799,2]
[326515850,1715037041315,-5416.25120179,0.00012799,2]
[326515851,1715037041328,-1591.72523531,0.00012799,2]
[326515852,1715037041340,-5479.6811629,0.00012799,2]
[326515854,1715037041351,-850.31883712,0.000128,2]
[326515856,1715037041363,-808.74082378,0.000128,2]
[326515857,1715037041375,-201.25917622,0.000128,4]
[326515860,1715037042169,-438.29,0.000128,4]
[326515863,1715037042182,-560.45082378,0.000128,4]
[326515866,1715037042192,-907.28307907,0.00012889,2]
[326515868,1715037042204,-887.24692093,0.00012889,2]
[326515870,1715037042214,-150.99,0.00012889,2]
[326515872,1715037042226,-155.0,0.00012897,2]
[326515874,1715037042237,-500.0,0.00012897,2]
[326515875,1715037042247,-150.0,0.00012897,2]
[326515876,1715037042257,-880.76307907,0.00012899,2]
[326515877,1715037042269,-12348.34692093,0.00012899,2]
[326515878,1715037042279,-1809.29,0.00012899,2]
[326515879,1715037042289,-2699.298,0.00012899,2]
[326515880,1715037042300,-94271.98804318,0.00012899,2]
[326515881,1715037042312,-1188.14,0.00012899,2]
[326515882,1715037044840,-149539.87195682,0.00012899,2]
[326515883,1715037044851,-5360.8965,0.00012899,2]
[326515884,1715037044862,-5838.25271304,0.000129,2]
[326515885,1715037044872,-177.10224628,0.000129,2]
[326515887,1715037044882,-1500.0,0.000129,4]
[326515890,1715037044891,-185.2744568,0.000129,2]
[326515891,1715037044900,-22701.93,0.00012924,2]
[326515893,1715037044910,-672.3424,0.00012999,2]
[326515897,1715037044920,-2329295.29287886,0.00013,2]
[326515900,1715037044933,-188.65310695,0.00013,2]
[326515902,1715037044948,-1466363.95613499,0.00013,2]
[326515903,1715037044958,-9999.99999901,0.00013,2]
[326515904,1715037044968,-3000.0,0.00013,2]
[326515905,1715037044977,-161.15,0.00013136,2]
[326515906,1715037044987,-512.74283902,0.0001315,2]
[326515907,1715037044997,-537.34,0.00013151,2]
[326515908,1715037045008,-447.79,0.00013151,2]
[326515909,1715037045018,-373.15,0.00013151,2]
[326515910,1715037045028,-373.15,0.00013151,2]
[326515911,1715037045044,-248.77,0.00013151,2]
[326515912,1715037045054,-207.31,0.00013151,2]
[326515913,1715037045063,-172.76,0.00013151,2]
[326515914,1715037045073,-863.81,0.00013151,2]
[326515915,1715037045083,-161.15,0.00013307,2]
[326515916,1715037045092,-771.52,0.00013425,2]
[326515917,1715037045105,-161.15,0.00013478,2]
[326515918,1715037045115,-161.15,0.00013649,2]
[326515919,1715037045126,-200.0,0.00013699,2]
[326515920,1715037045135,-150.0,0.00013699,2]
[326515921,1715037045145,-500.0,0.00013699,2]
[326515922,1715037045156,-161.15,0.0001382,2]
[326515923,1715037045167,-195.36,0.00013916,2]
[326515924,1715037045181,-1000.0,0.00013968,2]
[326515925,1715037045191,-5838.25271297,0.00014284,2]
[326515926,1715037045202,-241.24731649,0.00014643,2]
[326515927,1715037045212,-1103.04,0.00014955,2]
[326515928,1715037045227,-169.04200738,0.00014996,2]
[326515929,1715037045236,-5550.19344256,0.00014997,2]
[326515930,1715037045246,-2245.83146042,0.00014999,2]
[326515931,1715037045256,-689.5056417,0.00014999,2]
[326515932,1715037045267,-8087.00021408,0.00015,2]
[326515933,1715037045277,-155.0,0.00015,2]
[326515934,1715037045287,-257.03149954,0.00015,2]
[326515935,1715037045297,-300.0,0.00015068,2]
[326515936,1715037045308,-15612.6871724,0.000154,2]
[326515937,1715037045318,-195.36,0.00015462,2]
[326515938,1715037045329,-155.0,0.000155,2]
[326515939,1715037045339,-1000.0,0.0001552,2]
[326515940,1715037045348,-5838.25271297,0.00015667,2]
[326515941,1715037045358,-167.0,0.00015831,2]
[326515942,1715037045368,-170.82,0.00015838,2]
[326515943,1715037045378,-1203.11779541,0.00016,2]
[326515944,1715037045388,-9999.99,0.00016116,2]
[326515945,1715037045397,-241.24731649,0.00016386,2]
[326515946,1715037045408,-300.0,0.00016438,2]
[326515947,1715037045419,-1225.44903621,0.000165,2]
[326515948,1715037045429,-167.16488171,0.000169,2]
[326515949,1715037045439,-1748.69131799,0.00017,2]
[326515950,1715037045448,-19017.13230004,0.00017,2]
[326515951,1715037045459,-195.36,0.00017008,2]
[326515952,1715037045468,-5838.25271297,0.00017051,2]
[326515953,1715037045478,-1000.0,0.00017072,2]
[326515954,1715037045488,-159.00115838,0.00017108,2]
[326515955,1715037045498,-151.8721283,0.00017137,2]
[326515956,1715037045509,-155.43631611,0.00017201,2]
[326515957,1715037045519,-152.73358245,0.00017382,2]
[326515958,1715037045529,-151.8721283,0.0001777,2]
[326515959,1715037045539,-157.90378739,0.00017803,2]
[326515960,1715037045549,-69307.08019128,0.0001788,2]
[326515961,1715037045559,-69307.08019119,0.0001788,2]
[326515962,1715037045569,-69307.08019119,0.0001788,2]
[326515963,1715037045579,-69307.08019119,0.0001788,2]
[326515964,1715037045590,-1553.24482073,0.00018,2]
[326515965,1715037045600,-1107.43971652,0.00018,2]
[326515966,1715037045610,-1250.0,0.00018,3]
[326515967,1715037045621,-3000.0,0.00018,2]
[326515968,1715037045632,-17697.0,0.00018,5]
[326515969,1715037045641,-1656.64335229,0.000181,2]
[326515970,1715037045651,-241.24731649,0.0001813,2]
[326515971,1715037045661,-152.75547675,0.00018275,2]
[326515972,1715037045671,-152.73358245,0.00018316,2]
[326515973,1715037045684,-151.8721283,0.00018378,2]
[326515974,1715037045694,-5838.25271297,0.00018434,2]
[326515975,1715037045705,-167.0,0.00018444,2]
[326515976,1715037045716,-166.14,0.00018483,2]
[326515977,1715037045726,-195.36,0.00018555,2]
[326515978,1715037045736,-1000.0,0.00018624,2]
[326515979,1715037045745,-152.73358245,0.00018674,2]
[326515980,1715037045755,-3574.0,0.000187,2]
[326515981,1715037045766,-1956.3702525,0.00019,5]
[326515982,1715037045776,-5000.0,0.00019,2]
[326515983,1715037045786,-155.0,0.00019,2]
[326515984,1715037045796,-69307.08019119,0.00019121,2]
[326515985,1715037045805,-500.0,0.00019178,2]
[326515986,1715037045816,-306.55318988,0.00019178,2]
[326515987,1715037045837,-500.0,0.00019178,2]
[326515988,1715037045860,-500.0,0.00019178,2]
[326515989,1715037045871,-500.0,0.00019178,2]
[326515990,1715037045881,-163.64430379,0.00019178,2]
[326515991,1715037045891,-500.0,0.00019178,2]
[326515992,1715037045914,-487.55953075,0.00019178,2]
[326515993,1715037045924,-427.02082667,0.00019178,2]
[326515994,1715037045937,-500.0,0.00019178,2]
[326515995,1715037045947,-500.0,0.00019178,2]
[326515996,1715037045957,-500.0,0.00019178,2]
[326515997,1715037045967,-511.35034594,0.00019178,2]
[326515998,1715037045977,-374.52777362,0.00019178,2]
[326515999,1715037045987,-500.0,0.00019178,2]
[326516000,1715037045996,-500.0,0.00019178,2]
[326516001,1715037046006,-384.75520295,0.00019178,2]
[326516002,1715037046016,-500.0,0.00019178,2]
[326516003,1715037046026,-500.0,0.00019178,2]
[326516004,1715037046036,-500.0,0.00019178,2]
[326516005,1715037046046,-500.0,0.00019178,2]
[326516006,1715037046056,-500.0,0.00019178,2]
[326516007,1715037046067,-500.0,0.00019178,2]
[326516008,1715037046076,-247.97926359,0.00019178,2]
[326516009,1715037046086,-500.0,0.00019178,2]
[326516010,1715037046096,-500.0,0.00019178,2]
[326516011,1715037046106,-500.0,0.00019178,2]
[326516012,1715037046116,-500.0,0.00019178,2]
[326516013,1715037046126,-500.0,0.00019178,2]
[326516014,1715037046136,-500.0,0.00019178,2]
[326516015,1715037046146,-500.0,0.00019178,2]
[326516016,1715037046156,-500.0,0.00019178,2]
[326516017,1715037046166,-500.0,0.00019178,2]
[326516018,1715037046176,-500.0,0.00019178,2]
[326516019,1715037046185,-500.0,0.00019178,2]
[326516020,1715037046196,-500.0,0.00019178,2]
[326516021,1715037046207,-500.0,0.00019178,2]
[326516022,1715037046227,-500.0,0.00019178,2]
[326516023,1715037046256,-151.75,0.00019178,2]
[326516024,1715037046266,-180.07,0.00019178,2]
[326516025,1715037046276,-290.16,0.00019178,2]
[326516026,1715037046286,-3875.26447468,0.000192,2]
[326516027,1715037046296,-642.83,0.000192,2]
[326516029,1715037046306,-552.37,0.000192,2]
[326516030,1715037046316,-185.2744568,0.00019551,2]
[326516031,1715037046326,-155.30252456,0.00019798,2]
[326516032,1715037046337,-5838.25271297,0.00019818,2]
[326516033,1715037046347,-241.24731649,0.00019874,2]
[326516034,1715037046357,-345.4748,0.00019945,2]
[326516035,1715037046368,-6229.10982423,0.0002,2]
[326516036,1715037046378,-169.65889688,0.0002,2]
[326516037,1715037046388,-37419.29873334,0.0002,2]
[326516038,1715037046399,-5124.98330023,0.0002,2]
[326516039,1715037046409,-19701.87170514,0.0002,2]
[326516040,1715037046419,-1300.0,0.0002,3]
[326516041,1715037046429,-895.731538,0.0002,2]
[326516042,1715037046439,-155.5710581,0.00020053,2]
[326516043,1715037046449,-152.73358245,0.00020067,2]
[326516044,1715037046459,-154.1824867,0.00020231,2]
[326516045,1715037046469,-155.43631611,0.00020412,2]
[326516046,1715037046478,-155.43631611,0.00020495,2]
[326516048,1715037046489,-155.0,0.000205,2]
[326516049,1715037046498,-151.8721283,0.00020595,2]
[326516051,1715037046511,-159.00115838,0.00020638,2]
[326516052,1715037046522,-69307.08019119,0.00020701,2]
[326516054,1715037046533,-152.73358245,0.00020819,2]
[326516056,1715037046543,-895.731538,0.00020822,2]
[326516058,1715037046555,-241.24764842,0.00020898,2]
[326516060,1715037046565,-155.0,0.000209,2]
[326516062,1715037046574,-155.43631611,0.0002101,2]
[326516064,1715037046584,-152.73358245,0.00021024,2]
[326516065,1715037046594,-151.8721283,0.00021158,2]
[326516067,1715037046604,-150.0,0.000212,2]
[326516069,1715037046613,-5838.25271297,0.00021201,2]
[326516071,1715037046625,-152.73358245,0.00021219,2]
[326516072,1715037046635,-166.0,0.0002131,10]
[326516073,1715037046644,-552.37,0.000214,2]
[326516074,1715037046655,-163.18431386,0.00021401,2]
[326516075,1715037046664,-1815.03021535,0.00021412,2]
[326516076,1715037046674,-155.43631611,0.00021421,2]
[326516077,1715037046684,-151.8721283,0.0002147,2]
[326516078,1715037046694,-163.18431386,0.00021482,2]
[326516079,1715037046704,-642.83,0.000215,2]
[326516080,1715037046714,-160.21873538,0.00021591,2]
[326516081,1715037046724,-241.24731649,0.00021618,2]
[326516082,1715037046734,-500.0,0.00021642,2]
[326516083,1715037046744,-500.0,0.00021642,2]
[326516084,1715037046755,-895.731538,0.00021644,2]
[326516085,1715037046764,-150.0,0.000217,3]
[326516086,1715037046775,-150.0,0.000218,2]
[326516087,1715037046785,-158.10884051,0.00021824,2]
[326516088,1715037046796,-151.8721283,0.00021865,2]
[326516089,1715037046807,-6760.2217293,0.000219,2]
[326516090,1715037046817,-2000.0,0.00021918,2]
[326516091,1715037046827,-250.0,0.00021918,2]
[326516092,1715037046837,-363.15,0.00021918,2]
[326516093,1715037046847,-2000.0,0.00021918,3]
[326516094,1715037046856,-250.0,0.00021918,2]
[326516095,1715037046866,-150.0,0.00021918,2]
[326516096,1715037046876,-4583.95003129,0.00021978,2]
[326516097,1715037046886,-569161.06717565,0.0002198,2]
[326516098,1715037046895,-710.59605264,0.00021998,2]
[326516099,1715037046904,-2218.04036593,0.00021998,2]
[326516100,1715037046914,-306.31282982,0.00021998,2]
[326516101,1715037046924,-155.3047756,0.00021998,2]
[326516102,1715037046937,-155.51813378,0.00021998,2]
[326516103,1715037046947,-158.47920802,0.00021998,2]
[326516104,1715037046957,-291.84415768,0.00021998,2]
[326516105,1715037046966,-206.88313584,0.00021998,2]
[326516106,1715037046977,-155.0,0.00021998,2]
[326516107,1715037047214,-156.29970391,0.00021999,2]
[326516108,1715037047227,-167.31550311,0.00021999,2]
[326516109,1715037047237,-786.0242669,0.00022,2]
[326516110,1715037047247,-2172.05067977,0.00022,2]
[326516111,1715037047257,-2172.05067977,0.00022,2]
[326516112,1715037047268,-2172.05067977,0.00022,2]
[326516113,1715037047279,-2172.05067977,0.00022,2]
[326516114,1715037047289,-2172.05067977,0.00022,2]
[326516115,1715037047299,-2172.05067977,0.00022,2]
[326516116,1715037047309,-2172.05067977,0.00022,2]
[326516117,1715037047319,-2172.05067977,0.00022,2]
[326516118,1715037047329,-2172.05067977,0.00022,2]
[326516119,1715037047339,-2172.05067977,0.00022,2]
[326516120,1715037047349,-2172.05067977,0.00022,2]
[326516121,1715037047358,-2172.05067977,0.00022,2]
[326516122,1715037047368,-2172.05067977,0.00022,2]
[326516123,1715037047378,-2172.05067977,0.00022,2]
[326516124,1715037047388,-2172.05067977,0.00022,2]
[326516125,1715037047397,-2172.05067977,0.00022,2]
[326516126,1715037047407,-2172.05067977,0.00022,2]
[326516127,1715037047417,-2172.05067977,0.00022,2]
[326516128,1715037047428,-2172.05067977,0.00022,2]
[326516129,1715037047438,-2172.05067977,0.00022,2]
[326516130,1715037047447,-2172.05067977,0.00022,2]
[326516131,1715037047457,-2172.05067977,0.00022,2]
[326516132,1715037047467,-2172.05067977,0.00022,2]
[326516133,1715037047477,-2172.05067977,0.00022,2]
[326516134,1715037047488,-2172.05067977,0.00022,2]